Cogmind - Beta 11.1 @@@ ROGUE MODE // 2022.10.28 @ 00:25:06 Player: kawyua Result: Destroyed by Executioner with Helical Railgun Performance ------------- Evolutions (8) 4000 Regions Visited (17) 3400 Robots Destroyed (92) 460 Value Destroyed (2874) 2874 Prototype IDs (22) 440 Alien Tech Used (11) 2200 Bonus (7438) 7438 TOTAL SCORE: 20812 Bonus ------- High Alert Combat Kills 81 Entered DSFs 500 Met Warlord at Base 500 MAIN.C Attacked Warlord 500 Used Core Reset Matrix 3000 Met Warlord at Research 2000 Scanned by Researcher 500 Pursued by Intercept 500 Friendly Fire -143 Cogmind --------- Core Integrity 0/1700 Matter 104/300 Energy 99/100 System Corruption 0% Temperature Cool (9) Movement Core (50) Location -2/Section 7 Parts ------- > --- POWER (3) -------- (None) > --- PROPULSION (6) --- (None) > --- UTILITY (12) ----- (None) > --- WEAPON (2) ------- (None) > --- INVENTORY (5) ---- Transdimensional Reconstructor Subatomic Replicator Peak State ------------ > --- POWER ------------ Mini Fusion Reactor Light Quantum Reactor Light Quantum Reactor > --- PROPULSION ------- Impulse Thruster Array Impulse Thruster Array Impulse Thruster Array > --- UTILITY ---------- Advanced Power Amplifier Machine Analyzer Spectral Analyzer Advanced Sensor Array Advanced Signal Interpreter Advanced Terrain Scanner Advanced Transmission Jammer Advanced Phase Shifter Advanced Cloaking Device Advanced Cloaking Device Advanced Cloaking Device Ghost Barrier > --- WEAPON ----------- Force Lance > --- INVENTORY -------- Impulse Thruster Array System Restoration Module Vortex Driver Micro-nuke Launcher [Rating: 170] Favorites ----------- Power Mini Fusion Reactor Engine Ion Engine Power Core Micro Fission Core Reactor Mini Fusion Reactor Propulsion Light Treads Treads Light Treads Leg Aluminum Leg Wheel Wheel Flight Unit Cooled VTOL Module Utility High-capacity Storage Unit Device Advanced Power Amplifier Storage High-capacity Storage Unit Processor Advanced Signal Interpreter Hackware Ghost Barrier Protection Medium Armor Plating Artifact Phase Redirector Weapon Light Assault Rifle Energy Gun Small Laser Energy Cannon Advanced Plasma Cannon Ballistic Gun Light Assault Rifle Ballistic Cannon Battle Cannon Launcher Grenade Launcher Special Weapon Mining Laser Impact Weapon Hammer Slashing Weapon Katana Piercing Weapon Force Lance Special Melee Weapon Datajack Build | -11 -10 -10 -9 -8 -7 -6 -5 -4 -4 -4 -4 -3 -3 -3 -2 -2 -2 ------- Run | Scr Mat Min Mat Mat Fac Fac Fac Fac Upp Upp War Pro Res DSF Res Qua Sec Slots Evolved 16 | . . . 2 2 2 2 2 2 . . . . 2 . 2 . . Power 2 | . . . . . . 1 . . . . . . 1 . . . . Propulsion 4 | . . . 1 1 . . 1 . . . . . 1 . . . . Utility 10 | . . . 1 1 2 1 1 2 . . . . . . 2 . . Weapon . | . . . . . . . . . . . . . . . . . . Parts Attached 222 | 5 9 16 38 42 17 9 5 18 1 2 13 . 3 . 28 8 8 Power 28 | 1 1 . 1 7 2 1 2 2 . . 4 . . . 7 . . Engine 11 | 1 1 . 1 5 2 . 1 . . . . . . . . . . Core 7 | . . . . 2 . 1 1 1 . . 1 . . . 1 . . Reactor 10 | . . . . . . . . 1 . . 3 . . . 6 . . Propulsion 46 | 2 2 2 10 14 4 . 1 3 . 1 1 . 1 . 5 . . Treads 13 | . 2 . 8 3 . . . . . . . . . . . . . Leg 7 | . . 2 1 4 . . . . . . . . . . . . . Wheel 3 | 2 . . 1 . . . . . . . . . . . . . . Hover . | . . . . . . . . . . . . . . . . . . Flight 23 | . . . . 7 4 . 1 3 . 1 1 . 1 . 5 . . Utility 86 | 1 2 5 11 10 7 6 2 8 1 1 6 . 2 . 14 5 5 Device 49 | . . 3 3 5 2 3 2 8 1 1 3 . 2 . 7 4 5 Storage 4 | 1 2 . 1 . . . . . . . . . . . . . . Processor 13 | . . . . 3 2 2 . . . . 1 . . . 5 . . Hackware 6 | . . . . . 2 1 . . . . 1 . . . 2 . . Protection 13 | . . 2 7 2 1 . . . . . 1 . . . . . . Artifact 1 | . . . . . . . . . . . . . . . . 1 . Weapon 62 | 1 4 9 16 11 4 2 . 5 . . 2 . . . 2 3 3 Energy Gun 13 | 1 . 1 5 3 . . . . . . 1 . . . 1 . 1 Energy Cannon 8 | . . . . . 1 . . 2 . . 1 . . . . 3 1 Ballistic Gun 14 | . 3 4 3 4 . . . . . . . . . . . . . Ballistic Cannon 2 | . . 1 1 . . . . . . . . . . . . . . Launcher 11 | . . 1 2 2 2 2 . 1 . . . . . . . . 1 Special Weapon 1 | . . 1 . . . . . . . . . . . . . . . Impact Weapon 8 | . 1 1 5 . 1 . . . . . . . . . . . . Slashing Weapon 1 | . . . . 1 . . . . . . . . . . . . . Piercing Weapon 3 | . . . . . . . . 2 . . . . . . 1 . . Special Melee Weapon 1 | . . . . 1 . . . . . . . . . . . . . Unidentified Prototypes 24 | . . . 1 3 2 . . 1 . . 7 . . . 4 6 . Parts Lost 64 | . 4 4 6 13 1 1 2 4 . . . 2 . . 6 1 20 Power 12 | . 1 1 . 2 1 . 1 1 . . . . . . 2 . 3 Propulsion 15 | . 2 1 2 5 . . . 1 . . . . . . 1 . 3 Utility 25 | . . . 2 3 . 1 . 2 . . . 2 . . 2 1 12 Weapon 12 | . 1 2 2 3 . . 1 . . . . . . . 1 . 2 Highest Loss Streak 8 | . 3 3 2 3 1 1 2 6 . . . 2 . . 3 1 8 To Critical Strikes 2 | . . . . . . . . . . . . . . . . . 2 Average Slot Usage (%) 87 | . 87 87 95 93 95 98 99 91 94 94 92 93 88 90 81 78 40 Engine 5 | . 14 9 7 6 6 6 11 2 . . . . . . . . . Core 1 | . . . . 1 . 5 . 4 5 5 4 . . . 1 4 1 Reactor 2 | . . . . . . . . 2 5 5 5 10 9 9 9 8 1 Treads 10 | . 15 20 21 16 . . . . . . . . . . . . . Leg 3 | . . 7 6 10 . . . . . . . . . . . . . Wheel 2 | . 8 . 4 . . . . . . . . . . . . . . Flight 9 | . . . . 8 29 26 29 23 21 21 21 21 22 23 16 13 6 Device 17 | . . 8 10 19 20 20 22 33 42 42 36 30 31 33 29 28 13 Storage 7 | . 20 14 11 6 . . . . . . . . . . . . . Processor 5 | . . . . 1 13 18 17 13 10 10 10 10 9 9 13 11 8 Hackware 1 | . . . . . 2 . . . . . 2 5 4 4 5 8 4 Protection 3 | . . . 11 4 7 6 5 . . . . 4 . . . . . Energy Gun 3 | . 1 . 10 7 . . . . . . 3 5 4 4 . . . Ballistic Gun 6 | . 25 11 5 7 . . . . . . . . . . . . . Impact Weapon 1 | . . 4 2 . 1 6 5 . . . . . . . . . . Piercing Weapon 1 | . . . . . . . . 4 5 5 5 5 4 4 4 4 2 Naked Turns . | . . . . . . . . . . . . . . . . . . Heaviest Build 67 | 11 67 49 61 62 23 29 34 40 40 41 48 44 42 42 56 48 50 Greatest Support 80 | 20 40 40 60 80 30 30 36 41 41 43 45 45 52 52 52 48 57 Greatest Overweight (x) 4 | 3 3 2 4 3 1 . . . . . 1 . . . 1 . 3 Average Overweight (x) . | 1 1 1 1 . . . . . . . . . . . . . . Largest Inventory Capacity 20 | 8 20 20 20 20 5 5 5 5 5 5 5 5 5 5 5 5 5 Average Capacity 12 | 7 17 20 20 16 5 5 5 5 5 5 5 5 5 5 5 5 5 Most Carried 20 | 8 19 20 20 20 5 5 5 5 5 5 5 5 5 4 5 5 5 Average Carried 11 | 5 11 19 18 16 4 4 4 4 5 5 4 5 2 2 4 4 3 Final Capacity 20 | 8 20 20 20 5 5 5 5 5 5 5 5 5 5 5 5 5 5 Final Carried 20 | 7 19 20 20 5 5 5 4 5 5 5 5 5 2 4 5 5 2 Class Distribution -------------------- 33% | Mutant 20% | Scavenger-Mutant 9% | Infiltrator-Ninja 8% | Hacker-Ninja 7% | Generator-Ninja 7% | Scout 5% | Generator-Assassin Dominant Class ---------------- Mutant | -10/Materials Mutant | -10/Mines Scavenger-Mutant | -9/Materials Scavenger-Mutant | -8/Materials Scout | -7/Factory Scout | -6/Factory Scout | -5/Factory Infiltrator-Ninja | -4/Factory Infiltrator-Ninja | -4/Upper Caves Infiltrator-Ninja | -4/Upper Caves Hacker-Ninja | -4/Warlord Hacker-Ninja | -3/Proximity Caves Generator-Ninja | -3/Research Generator-Ninja | -3/DSF Generator-Assassin | -2/Research Generator-Ninja | -2/Quarantine Mutant | -2/Section 7 Resources | -11 -10 -10 -9 -8 -7 -6 -5 -4 -4 -4 -4 -3 -3 -3 -2 -2 -2 ----------- Run | Scr Mat Min Mat Mat Fac Fac Fac Fac Upp Upp War Pro Res DSF Res Qua Sec Matter Collected 3143 | 214 239 401 601 541 189 112 66 114 108 18 203 . . . 300 29 8 Remotely . | . . . . . . . . . . . . . . . . . . Salvage Created 2893 | . 397 508 868 729 192 25 39 135 . . . . . . . . . Parts 165 | . 28 30 48 37 10 . 3 9 . . . . . . . . . Haulers Intercepted . | . . . . . . . . . . . . . . . . . . Recyclers Shooed 1 | . . 1 . . . . . . . . . . . . . . . Parts Field Recycled . | . . . . . . . . . . . . . . . . . . Retrieved Matter . | . . . . . . . . . . . . . . . . . . Parts Self-Destructed 1 | . . . . . . . . . . 1 . . . . . . . Prevented 5 | . . . . . . . . . . 5 . . . . . . . Kills | -11 -10 -10 -9 -8 -7 -6 -5 -4 -4 -4 -4 -3 -3 -3 -2 -2 -2 ------- Run | Scr Mat Min Mat Mat Fac Fac Fac Fac Upp Upp War Pro Res DSF Res Qua Sec Combat Hostiles Destroyed 77 | . 11 16 24 16 . . 4 6 . . . . . . . . . Melee 5 | . . 3 1 . . . . 1 . . . . . . . . . Guns 42 | . 11 2 17 12 . . . . . . . . . . . . . Cannons 12 | . . 8 2 . . . . 2 . . . . . . . . . AOE 16 | . . 2 3 4 . . 4 3 . . . . . . . . . Classes Destroyed 13 | . 4 3 3 1 1 . 1 . . . . . . . . . . Worker 1 | . 1 . . . . . . . . . . . . . . . . Builder 5 | . 1 . 1 . 3 . . . . . . . . . . . . Tunneler 1 | . . 1 . . . . . . . . . . . . . . . Recycler 3 | . . 1 . . 2 . . . . . . . . . . . . Operator 2 | . . . . . 2 . . . . . . . . . . . . Drone 1 | . . . . . . . 1 . . . . . . . . . . Watcher 4 | . . . . 2 . 1 . 1 . . . . . . . . . Swarmer 25 | . 3 2 6 4 . . 4 6 . . . . . . . . . Grunt 38 | . 8 13 9 8 . . . . . . . . . . . . . Brawler 1 | . . . 1 . . . . . . . . . . . . . . Duelist 1 | . . . 1 . . . . . . . . . . . . . . Sentry 11 | . . . 7 4 . . . . . . . . . . . . . Assembled 1 | . . 1 . . . . . . . . . . . . . . . Best Kill Streak 6 | . 4 4 4 5 6 1 4 3 . . . . . . . . . Combat Bots Only 5 | . 3 4 3 5 . . 4 3 . . . . . . . . . Max Kills in Single Turn 3 | . 1 1 1 2 3 1 3 2 . . . . . . . . . Gunslinging . | . . . . . . . . . . . . . . . . . . Exploded 2 | . . 1 1 2 . . 2 2 . . . . . . . . . Melee 1 | . . 1 1 . . . . 1 . . . . . . . . . Uniques/NPCs Destroyed . | . . . . . . . . . . . . . . . . . . Combat | -11 -10 -10 -9 -8 -7 -6 -5 -4 -4 -4 -4 -3 -3 -3 -2 -2 -2 -------- Run | Scr Mat Min Mat Mat Fac Fac Fac Fac Upp Upp War Pro Res DSF Res Qua Sec Damage Taken 8321 | . 440 804 1356 1554 176 213 182 374 16 . 97 276 . . 415 110 2308 Core 2220 | . 61 170 114 210 48 104 . 93 . . 43 109 . . 48 60 1160 Absorbed by Shields . | . . . . . . . . . . . . . . . . . . Redirected to Shielding 140 | . . 10 7 41 . 16 26 9 . . . 31 . . . . . Core Remaining (%) 77 | 100 . 7 71 61 93 87 100 . . . . 78 . 100 . . . Volleys Fired 289 | . 40 45 65 63 8 . 4 26 3 3 1 13 1 . 3 6 8 Largest 2 | . 2 2 2 2 1 . 1 1 1 1 1 1 1 . 1 1 1 Hottest 100 | . 60 59 96 88 65 . 43 98 98 98 100 40 40 . 40 100 100 Shots Fired 464 | . 80 70 125 113 8 . 4 26 3 3 1 13 1 . 3 6 8 Gun 355 | . 80 38 108 112 . . . . . . . 13 1 . 3 . . Cannon 92 | . . 30 13 . 5 . . 24 3 3 1 . . . . 6 7 Launcher 17 | . . 2 4 1 3 . 4 2 . . . . . . . . 1 Special . | . . . . . . . . . . . . . . . . . . Kinetic 240 | . 65 68 45 62 . . . . . . . . . . . . . Thermal 176 | . 15 . 76 50 5 . . 24 3 3 . . . . . . . Explosive 17 | . . 2 4 1 3 . 4 2 . . . . . . . . 1 Electromagnetic . | . . . . . . . . . . . . . . . . . . Entropic 31 | . . . . . . . . . . . 1 13 1 . 3 6 7 Robot Hit Streak 19 | . 12 6 19 17 8 . . 2 . . . . . . . . 1 Robot Miss Streak 3 | . 3 2 2 2 1 . 3 1 . . . . 2 . . . . Penetration Max . | . . . . . . . . . . . . . . . . . . Secondary Targets 3 | . . . . 3 . . . . . . . . . . . . . Max Gunslinging Chain 1 | . . . . 1 . . . . . . . . . . . . . Shots Hit Robots 307 | . 57 51 96 87 3 1 . 8 . . . . . . . . 4 Core Hits 140 | . 21 19 43 37 9 . 5 6 . . . . . . . . . Critical Kills 1 | . 1 . . . . . . . . . . . . . . . . Critical Parts Destroyed 3 | . 1 2 . . . . . . . . . . . . . . . Critical Strikes 9 | . 2 2 2 3 . . . . . . . . . . . . . Burn 4 | . . . 1 3 . . . . . . . . . . . . . Destroy 3 | . 2 . 1 . . . . . . . . . . . . . . Smash 2 | . . 2 . . . . . . . . . . . . . . . Melee Attacks 127 | . 3 15 26 13 7 15 . 14 . . 5 . 7 . 3 14 5 Impact 67 | . 3 15 26 3 2 15 . 3 . . . . . . . . . Slashing 10 | . . . . 5 5 . . . . . . . . . . . . Piercing 45 | . . . . . . . . 11 . . 5 . 7 . 3 14 5 Sneak Attacks 2 | . . 1 . 1 . . . . . . . . . . . . . Combat Hostiles . | . . . . . . . . . . . . . . . . . . Follow-up Attacks . | . . . . . . . . . . . . . . . . . . Damage Inflicted 7181 | . 503 1073 1730 1558 767 53 381 698 . . . . . . . . 418 Guns 2929 | . 503 195 1009 1222 . . . . . . . . . . . . . Cannons 775 | . . 428 93 . . . . 164 . . . . . . . . 90 Explosions 2162 | . . 222 228 256 677 . 381 398 . . . . . . . . . Melee 1295 | . . 228 380 80 90 53 . 136 . . . . . . . . 328 Ramming 20 | . . . 20 . . . . . . . . . . . . . . Kinetic 2070 | . 389 623 410 648 . . . . . . . . . . . . . Thermal 1747 | . 114 . 692 777 . . . 164 . . . . . . . . . Explosive 1959 | . . 222 228 53 677 . 381 398 . . . . . . . . . Electromagnetic . | . . . . . . . . . . . . . . . . . . Impact 733 | . . 228 380 . . 53 . 72 . . . . . . . . . Slashing 170 | . . . . 80 90 . . . . . . . . . . . . Piercing 392 | . . . . . . . . 64 . . . . . . . . 328 Entropic 90 | . . . . . . . . . . . . . . . . . 90 Highest Corruption 4 | . . . 4 . . 1 1 1 1 1 1 . . . . . . Average Corruption 2 | . . . 4 . . 1 1 1 1 1 1 . . . . . . Corruption Purged . | . . . . . . . . . . . . . . . . . . Corruption Blocked 11 | . . . . . . . . . . . . . . . 11 . . Effects 31 | . . . 25 . . . 1 3 1 . 1 . . . . . . Message Errors 9 | . . . 9 . . . . . . . . . . . . . . Matter Fused 5 | . . . 2 . . . . 2 . . 1 . . . . . . Heat Flow Errors 3 | . . . 3 . . . . . . . . . . . . . . Energy Discharges 7 | . . . 6 . . . 1 . . . . . . . . . . Parts Rejected 2 | . . . 2 . . . . . . . . . . . . . . Data Loss (minor) 1 | . . . . . . . . 1 . . . . . . . . . Data Loss (major) 1 | . . . 1 . . . . . . . . . . . . . . Misfires 2 | . . . 2 . . . . . . . . . . . . . . Alerts 1 | . . . . . . . . . 1 . . . . . . . . Overload Shots . | . . . . . . . . . . . . . . . . . . Overflow Damage 355 | . . 124 29 21 81 18 35 47 . . . . . . . . . Projectiles 13 | . . . 6 . . . . 7 . . . . . . . . . Explosions 214 | . . 29 8 21 81 . 35 40 . . . . . . . . . Melee 128 | . . 95 15 . . 18 . . . . . . . . . . . Knockbacks 5 | . . 1 3 . . . . 1 . . . . . . . . . Impact 2 | . . . 1 . . . . 1 . . . . . . . . . Kinetic 3 | . . 1 2 . . . . . . . . . . . . . . Secondary . | . . . . . . . . . . . . . . . . . . Self-Inflicted Damage 415 | . . . 44 121 152 . 56 . . . . . . . . . 42 Shots 8 | . . . 2 2 2 . 1 . . . . . . . . . 1 Rammed 2 | . . . 2 . . . . . . . . . . . . . . Targets Rammed 2 | . . . 2 . . . . . . . . . . . . . . Kicked . | . . . . . . . . . . . . . . . . . . Crushed . | . . . . . . . . . . . . . . . . . . Highest Temperature 443 | . 76 26 443 66 80 . 9 344 157 153 86 18 . . 415 8 80 Average Temperature 62 | . 23 12 117 18 35 . 5 110 34 110 25 18 . . 104 4 43 Received Heat Transfer 2077 | . 180 357 549 729 . 6 27 . 9 . 48 46 . . . . 126 Effects 3 | . . . 1 . . . . 1 . . . . . . 1 . . Shutdowns 2 | . . . . . . . . 1 . . . . . . 1 . . Energy Bleed 1 | . . . 1 . . . . . . . . . . . . . . Siege Activations . | . . . . . . . . . . . . . . . . . . Robots Corrupted . | . . . . . . . . . . . . . . . . . . Combat Hostiles . | . . . . . . . . . . . . . . . . . . Parts Fried 4 | . . 2 . . . 2 . . . . . . . . . . . Impact Corruptions 6 | . . 4 1 . . 1 . . . . . . . . . . . Robots Melted . | . . . . . . . . . . . . . . . . . . Combat Hostiles . | . . . . . . . . . . . . . . . . . . Parts Melted 7 | . . . 5 2 . . . . . . . . . . . . . Heat Transferred 4039 | . 275 . 1749 1765 . . . 250 . . . . . . . . . Parts Sabotaged . | . . . . . . . . . . . . . . . . . . Parts Stolen . | . . . . . . . . . . . . . . . . . . Parts Stripped . | . . . . . . . . . . . . . . . . . . Power Chain Reactions . | . . . . . . . . . . . . . . . . . . Missiles Intercepted . | . . . . . . . . . . . . . . . . . . Alert | -11 -10 -10 -9 -8 -7 -6 -5 -4 -4 -4 -4 -3 -3 -3 -2 -2 -2 ------- Run | Scr Mat Min Mat Mat Fac Fac Fac Fac Upp Upp War Pro Res DSF Res Qua Sec Peak Influence 572 | . 257 194 490 490 572 521 424 546 . . . . 15 11 80 200 349 Initial 237 | . . 1 31 178 218 237 45 207 . . . . . 11 6 . 112 Average 190 | . 84 82 334 257 391 300 218 369 . . . . 5 11 23 97 229 Maximum Alert Level 2 | . 1 . 2 2 2 2 2 2 . . . . . . . 1 1 Low Security (%) 55 | 100 91 100 16 19 . 4 52 . . . . . 100 100 100 90 45 Level 1 29 | . 8 . 37 77 41 79 34 78 . . . . . . . 9 54 Level 2 14 | . . . 46 2 58 15 13 21 . . . . . . . . . Level 3 . | . . . . . . . . . . . . . . . . . . Level 4 . | . . . . . . . . . . . . . . . . . . Level 5 . | . . . . . . . . . . . . . . . . . . High Security . | . . . . . . . . . . . . . . . . . . Max Security . | . . . . . . . . . . . . . . . . . . Squads Dispatched 20 | . 2 . 4 1 1 1 1 3 . . . . 1 . 1 1 4 Investigation 2 | . 1 . . . . . . . . . . . . . . . 1 Extermination 2 | . . . . . . 1 . . . . . . . . . . 1 Reinforcement 14 | . 1 . 3 1 1 . 1 3 . . . . 1 . 1 1 1 Assault 1 | . . . 1 . . . . . . . . . . . . . . Garrison . | . . . . . . . . . . . . . . . . . . Intercept 1 | . . . . . . . . . . . . . . . . . 1 Searches Triggered 1 | . . . . . . 1 . . . . . . . . . . . Construction Impeded . | . . . . . . . . . . . . . . . . . . Haulers Reinforced . | . . . . . . . . . . . . . . . . . . Active Scanning Responses . | . . . . . . . . . . . . . . . . . . Cargo Convoy Interrupts . | . . . . . . . . . . . . . . . . . . Stealth | -11 -10 -10 -9 -8 -7 -6 -5 -4 -4 -4 -4 -3 -3 -3 -2 -2 -2 --------- Run | Scr Mat Min Mat Mat Fac Fac Fac Fac Upp Upp War Pro Res DSF Res Qua Sec Distress Signals 22 | . 4 1 5 1 . 2 1 1 . . 1 . . . 6 . . Communications Jammed 51 | . . . . . . . . 3 . . . . . . 17 1 30 Distress Signals 51 | . . . . . . . . 3 . . . . . . 17 1 30 Times Spotted 295 | . 29 21 47 23 10 12 12 24 1 . 27 6 . 1 14 5 63 Peak Tracking Total 11 | . 4 3 6 8 4 9 6 6 1 . 11 5 . 1 5 3 9 Tactical Retreats 41 | . 2 8 6 . 2 2 3 8 1 . 2 1 . . 5 . 1 Traps | -11 -10 -10 -9 -8 -7 -6 -5 -4 -4 -4 -4 -3 -3 -3 -2 -2 -2 ------- Run | Scr Mat Min Mat Mat Fac Fac Fac Fac Upp Upp War Pro Res DSF Res Qua Sec Traps Triggered 7 | . 2 . . . 1 1 . 1 . . . . . . 1 1 . Indirectly . | . . . . . . . . . . . . . . . . . . Trap Hack Attempts . | . . . . . . . . . . . . . . . . . . Triggered . | . . . . . . . . . . . . . . . . . . Disarmed . | . . . . . . . . . . . . . . . . . . Reprogrammed . | . . . . . . . . . . . . . . . . . . Reused . | . . . . . . . . . . . . . . . . . . Traps Extracted . | . . . . . . . . . . . . . . . . . . Installed . | . . . . . . . . . . . . . . . . . . Triggered 11 | . . . . . . . . . . 2 9 . . . . . . Machines | -11 -10 -10 -9 -8 -7 -6 -5 -4 -4 -4 -4 -3 -3 -3 -2 -2 -2 ---------- Run | Scr Mat Min Mat Mat Fac Fac Fac Fac Upp Upp War Pro Res DSF Res Qua Sec Machines Disabled 26 | . . . 1 1 8 . 4 . . 1 1 . . . . 4 6 Max in Single Turn 4 | . . . 1 1 3 . 4 . . 1 1 . . . . 1 2 Garrison Access 2 | . . . . . . . . 1 . . . . . . 1 . . Machines Sabotaged . | . . . . . . . . . . . . . . . . . . Garrisons Compromised 1 | . . . . . . 1 . . . . . . . . . . . Overloaded Fab Kills . | . . . . . . . . . . . . . . . . . . Hacking | -11 -10 -10 -9 -8 -7 -6 -5 -4 -4 -4 -4 -3 -3 -3 -2 -2 -2 --------- Run | Scr Mat Min Mat Mat Fac Fac Fac Fac Upp Upp War Pro Res DSF Res Qua Sec Machines Accessed 68 | . 7 . 6 5 6 9 2 6 1 2 8 . 1 . 5 5 5 Terminals 43 | . 7 . 6 4 4 4 1 3 . . . . 1 . 3 5 5 Fabricators 3 | . . . . . . 2 . . . . . . . . 1 . . Repair Stations 2 | . . . . . . 1 . 1 . . . . . . . . . Recycling Units 3 | . . . . . 1 1 1 . . . . . . . . . . Scanalyzers 1 | . . . . . . 1 . . . . . . . . . . . Garrison Access 5 | . . . . 1 1 . . 2 . . . . . . 1 . . Total Hacks 137 | . 22 . 13 11 10 20 5 7 1 2 12 . 1 . 13 10 10 Successful 73 | . 11 . 3 3 6 10 4 4 1 2 12 . 1 . 5 6 5 Failed 64 | . 11 . 10 8 4 10 1 3 . . . . . . 8 4 5 Catastrophic 14 | . . . 1 2 1 2 . 1 . . . . . . 5 2 . Database Lockouts . | . . . . . . . . . . . . . . . . . . Manual 89 | . 21 . 12 10 8 11 3 6 . . 1 . . . 12 5 . Terminals 103 | . 22 . 13 10 8 12 2 4 . . . . 1 . 11 10 10 Fabricators 4 | . . . . . . 3 . . . . . . . . 1 . . Repair Stations 3 | . . . . . . 2 . 1 . . . . . . . . . Recycling Units 5 | . . . . . 1 1 3 . . . . . . . . . . Scanalyzers 2 | . . . . . . 2 . . . . . . . . . . . Garrison Access 5 | . . . . 1 1 . . 2 . . . . . . 1 . . Terminal Hacks 41 | . 3 . . 1 3 4 . 1 1 2 12 . 1 . 3 5 5 Record 15 | . . . . . . . . . . 1 11 . . . . 3 . Open Door 6 | . . . . . . . . . 1 1 1 . . . . . 3 Open DSF 1 | . . . . . . . . . . . . . 1 . . . . Level Access Points 1 | . . . . . . . . . . . . . . . . 1 . Terminal Index 6 | . 1 . . 1 1 . . 1 . . . . . . 1 1 . Alert Level 3 | . 1 . . . . 2 . . . . . . . . . . . Unreport Threat 6 | . 1 . . . 1 2 . . . . . . . . 2 . . Hauler Manifests 1 | . . . . . 1 . . . . . . . . . . . . Activate Exoskeleton 2 | . . . . . . . . . . . . . . . . . 2 Fabricator Hacks 1 | . . . . . . 1 . . . . . . . . . . . Network Status 1 | . . . . . . 1 . . . . . . . . . . . Repair Station Hacks . | . . . . . . . . . . . . . . . . . . Recycling Unit Hacks 2 | . . . . . . . 2 . . . . . . . . . . Report Inventory 1 | . . . . . . . 1 . . . . . . . . . . Retrieve Components 1 | . . . . . . . 1 . . . . . . . . . . Scanalyzer 2 | . . . . . . 2 . . . . . . . . . . . Insert Component 1 | . . . . . . 1 . . . . . . . . . . . Analyze 1 | . . . . . . 1 . . . . . . . . . . . Garrison Access Hacks 1 | . . . . . . . . 1 . . . . . . . . . Seal Access 1 | . . . . . . . . 1 . . . . . . . . . Unauthorized Hacks 26 | . 8 . 3 2 3 3 2 2 . . . . . . 2 1 . Terminals 23 | . 8 . 3 2 2 3 1 1 . . . . . . 2 1 . Assimilate 8 | . 3 . 2 . . 2 . . . . . . . . 1 . . Botnet 8 | . 4 . . 1 1 . . 1 . . . . . . 1 . . Operators 7 | . 1 . 1 1 1 1 1 . . . . . . . . 1 . Fabricators . | . . . . . . . . . . . . . . . . . . Repair Stations 1 | . . . . . . . . 1 . . . . . . . . . Mechanics 1 | . . . . . . . . 1 . . . . . . . . . Recycling Units 2 | . . . . . 1 . 1 . . . . . . . . . . Recyclers 2 | . . . . . 1 . 1 . . . . . . . . . . Scanalyzers . | . . . . . . . . . . . . . . . . . . Garrison Access . | . . . . . . . . . . . . . . . . . . Data Cores Recovered . | . . . . . . . . . . . . . . . . . . Used . | . . . . . . . . . . . . . . . . . . Hacking Detections 44 | . 4 . 6 4 5 9 1 5 . . . . . . 4 3 3 Full Trace Events 1 | . . . . . . . . . . . . . . . . . 1 Feedback Events . | . . . . . . . . . . . . . . . . . . Feedback Blocked . | . . . . . . . . . . . . . . . . . . Robot Schematics Acquired 1 | . . . . . . . . . . . . . . . . 1 . Robots Built . | . . . . . . . . . . . . . . . . . . Authchips . | . . . . . . . . . . . . . . . . . . Time . | . . . . . . . . . . . . . . . . . . Total Robot Build Rating . | . . . . . . . . . . . . . . . . . . Part Schematics Acquired 5 | . . . . . . 1 . . . . . . . . . 4 . Parts Built . | . . . . . . . . . . . . . . . . . . Authchips . | . . . . . . . . . . . . . . . . . . Time . | . . . . . . . . . . . . . . . . . . Total Part Build Rating . | . . . . . . . . . . . . . . . . . . Parts Repaired . | . . . . . . . . . . . . . . . . . . Time . | . . . . . . . . . . . . . . . . . . Parts Recycled . | . . . . . . . . . . . . . . . . . . Recycled Matter . | . . . . . . . . . . . . . . . . . . Retrieved Matter . | . . . . . . . . . . . . . . . . . . Retrieved Components 1 | . . . . . . . 1 . . . . . . . . . . Parts Scanalyzed 1 | . . . . . . 1 . . . . . . . . . . . Part Schematics Acquired 1 | . . . . . . 1 . . . . . . . . . . . Parts Damaged . | . . . . . . . . . . . . . . . . . . Bothacking | -11 -10 -10 -9 -8 -7 -6 -5 -4 -4 -4 -4 -3 -3 -3 -2 -2 -2 ------------ Run | Scr Mat Min Mat Mat Fac Fac Fac Fac Upp Upp War Pro Res DSF Res Qua Sec Used RIF Installer . | . . . . . . . . . . . . . . . . . . Robots Hacked 2 | . . . . 2 . . . . . . . . . . . . . Non-combat 2 | . . . . 2 . . . . . . . . . . . . . Combat . | . . . . . . . . . . . . . . . . . . Robot Hacks Applied 2 | . . . . 2 . . . . . . . . . . . . . parse_system 1 | . . . . 1 . . . . . . . . . . . . . check_alert 1 | . . . . 1 . . . . . . . . . . . . . Relay Couplers Released 1 | . . . . . . . . . . . . . . . 1 . . Machine Destruction 1 | . . . . . . . . . . . . . . . 1 . . Fabnet Peak Effective % . | . . . . . . . . . . . . . . . . . . Robots Rewired . | . . . . . . . . . . . . . . . . . . Allies Hacked . | . . . . . . . . . . . . . . . . . . Hacks Repelled . | . . . . . . . . . . . . . . . . . . Allies | -11 -10 -10 -9 -8 -7 -6 -5 -4 -4 -4 -4 -3 -3 -3 -2 -2 -2 -------- Run | Scr Mat Min Mat Mat Fac Fac Fac Fac Upp Upp War Pro Res DSF Res Qua Sec Total Allies 5 | . 1 . 1 . . 2 . . . . . . . . 1 . . Largest Group 1 | . 1 1 1 . . 1 . . . . . . . . 1 . . Highest-Rated Group 26 | . 10 10 10 . . 26 . . . . . . . . 10 . . Highest-Rated Ally 26 | . 10 10 10 . . 26 . . . . . . . . 10 . . Total Orders 3 | . . . 1 . . . 2 . . . . . . . . . . STAY 1 | . . . 1 . . . . . . . . . . . . . . EXPLORE 2 | . . . . . . . 2 . . . . . . . . . . Ally Attacks . | . . . . . . . . . . . . . . . . . . Total Damage . | . . . . . . . . . . . . . . . . . . Kills . | . . . . . . . . . . . . . . . . . . Allies Corrupted 1 | . . 1 . . . . . . . . . . . . . . . Allies Melted 2 | . . . . . . . . . . . . . . . 2 . . Intel | -11 -10 -10 -9 -8 -7 -6 -5 -4 -4 -4 -4 -3 -3 -3 -2 -2 -2 ------- Run | Scr Mat Min Mat Mat Fac Fac Fac Fac Upp Upp War Pro Res DSF Res Qua Sec Robot Analysis Total . | . . . . . . . . . . . . . . . . . . Derelict Logs Recovered 5 | . . 2 . . . . . . 2 1 . . . . . . . Drone Launches 2 | . . . . . . . 2 . . . . . . . . . . Drone Recoveries . | . . . . . . . . . . . . . . . . . . Exploration | -11 -10 -10 -9 -8 -7 -6 -5 -4 -4 -4 -4 -3 -3 -3 -2 -2 -2 ------------- Run | Scr Mat Min Mat Mat Fac Fac Fac Fac Upp Upp War Pro Res DSF Res Qua Sec Turns Passed 10387 | 120 1482 1220 2029 792 322 371 140 541 287 108 444 344 96 17 1236 307 531 Spaces Moved 12522 | 81 624 373 875 536 880 946 418 1284 772 344 1050 546 188 58 2121 552 874 Core 368 | 43 . . . . . . . . . . . . . . . . 325 Treads 1128 | . 330 285 398 115 . . . . . . . . . . . . . Legs 224 | . . 88 88 48 . . . . . . . . . . . . . Wheels 721 | 38 294 . 389 . . . . . . . . . . . . . . Hover . | . . . . . . . . . . . . . . . . . . Flight 10081 | . . . . 373 880 946 418 1284 772 344 1050 546 188 58 2121 552 549 Fastest Speed 23 | 50 80 240 135 26 23 27 25 24 28 28 29 29 26 26 26 39 39 Average Speed 61 | 129 184 244 180 81 26 27 25 26 28 28 30 29 26 26 53 39 46 Slowest Speed 400 | 200 400 260 240 275 96 27 25 28 28 29 105 29 29 26 119 39 200 Overloaded Moves 28 | . . . . . 28 . . . . . . . . . . . . Propulsion Burnouts . | . . . . . . . . . . . . . . . . . . Robots Hopped 15 | . . . . . . 2 2 3 . . . . . . 2 6 . Cave-ins Triggered . | . . . . . . . . . . . . . . . . . . Teleports 5 | . . . . . . . . . . . . . . . . 3 2 Exploration Rate (%) 53 | 4 71 82 60 48 27 31 14 34 79 67 95 70 6 88 56 62 65 Regions Visited 17 Branch Regions 7 Pre-discovered Areas 1 | . . 1 . . . . . . . . . . . . . . . Known Exits Taken 12 | . . . . 1 1 1 1 1 1 1 1 1 1 . 1 1 . Unknown Exits Taken 4 | 1 1 1 1 . . . . . . . . . . . . . . Scrap Searched 10 | . . 1 . . . . . . 5 1 . 3 . . . . . Spaces Dug 109 | . 3 . 3 3 6 14 . 25 3 2 3 13 4 . 5 20 5 Terrain Destroyed 327 | . 3 21 28 42 47 14 61 55 3 2 3 13 5 . 5 20 5 Melee 53 | . 3 . 3 3 5 14 . 10 . . 1 . 4 . 2 8 . Projectile 67 | . . 4 2 . 1 . . 19 3 2 2 13 1 . 3 12 5 AOE 207 | . . 17 23 39 41 . 61 26 . . . . . . . . . Terrain Rammed . | . . . . . . . . . . . . . . . . . . Walls Destroyed . | . . . . . . . . . . . . . . . . . . Machines Disabled . | . . . . . . . . . . . . . . . . . . Actions | -11 -10 -10 -9 -8 -7 -6 -5 -4 -4 -4 -4 -3 -3 -3 -2 -2 -2 --------- Run | Scr Mat Min Mat Mat Fac Fac Fac Fac Upp Upp War Pro Res DSF Res Qua Sec Total 14477 | 95 884 587 1156 763 948 1030 446 1431 839 351 1166 717 218 59 2201 604 982 Wait 1023 | . 182 133 112 56 12 49 14 69 63 . 78 159 20 . 15 7 54 Move 12477 | 80 623 372 874 535 879 941 413 1277 771 343 1049 545 187 57 2116 541 874 Hop 13 | . . . . . . 2 2 3 . . . . . . 2 4 . Pick Up 141 | 10 22 4 21 23 9 7 4 10 . 1 4 . . 2 7 7 10 Fast Attach 99 | 2 . 2 4 14 14 2 2 10 . . 12 . . . 25 6 6 Attach 73 | 3 7 2 12 13 1 4 2 3 . . 1 . 3 . 3 8 11 Detach 4 | . . . . . . 1 . . . . . . . . . 3 . Swap 68 | . 2 12 22 16 2 3 1 5 1 2 . . . . 1 1 . Drop 154 | . 5 2 18 30 16 6 4 14 1 2 16 . . . 26 7 7 Fire 289 | . 40 45 65 63 8 . 4 26 3 3 1 13 1 . 3 6 8 Melee 127 | . 3 15 26 13 7 15 . 14 . . 5 . 7 . 3 14 5 Ram 1 | . . . 1 . . . . . . . . . . . . . . Kick . | . . . . . . . . . . . . . . . . . . Crush 1 | . . . 1 . . . . . . . . . . . . . . Escape Stasis 7 | . . . . . . . . . . . . . . . . . 7 Rewire . | . . . . . . . . . . . . . . . . . . Trap . | . . . . . . . . . . . . . . . . . . Miscellaneous . | . . . . . . . . . . . . . . . . . . Route ------- -11/Scrapyard -10/Materials (discovered 4 exits: *Mat x2 / [*Min x2]) -10/Mines -9/Materials (discovered 2 exits: *Mat / [*Min]) -8/Materials -7/Factory (discovered 2 exits: *Fac / [*Low]) -6/Factory (discovered 2 exits: *Fac x2) -5/Factory -4/Factory (discovered 2 exits: *Upp / *Ext) -4/Upper Caves -4/Upper Caves (discovered 2 exits: *Res / *War) -4/Warlord -3/Proximity Caves -3/Research (discovered 2 exits: Res / DSF) -3/DSF -2/Research -2/Quarantine -2/Section 7 History --------- Turn | Location | Event 26 | -11/Scrapyard | Discovered new exit (range 15) 121 | -11/Scrapyard | Entered Materials 250 | -10/Materials | Discovered new exit (range 8) 314 | -10/Materials | Build established: Mutant 534 | -10/Materials | Discovered new exit (range 16) 636 | -10/Materials | Lost 3 parts (1p2n) 737 | -10/Materials | Discovered new exit (range 8) 966 | -10/Materials | Discovered new exit (range 16) 1603 | -10/Materials | Entered Mines 1603 | -10/Mines | Accompanied by 1 ally 1655 | -10/Mines | A weapon hastily lodged in a ceiling crevice suddenly fell to the ground 1941 | -10/Mines | Excavation squad dispatched 1941 | -10/Mines | A large section of the Mines collapsed 2191 | -10/Mines | Excavation squad dispatched 2441 | -10/Mines | Excavation squad dispatched 2465 | -10/Mines | Core integrity fell below 50% 2491 | -10/Mines | Core integrity fell below 20% 2515 | -10/Mines | Lost 3 parts (1p1n1w) 2691 | -10/Mines | Excavation squad dispatched 2694 | -10/Mines | Learned Materials stockpile data 2720 | -10/Mines | Learned location of Zion (-7) 2807 | -10/Mines | Discovered new exit (range 5) 2823 | -10/Mines | Entered Materials 2823 | -9/Materials | Evolved 2 slots: Propulsion x1, Utility x1 3340 | -9/Materials | Discovered new exit (range 15) 3624 | -9/Materials | Build established: Scavenger-Mutant 3925 | -9/Materials | Discovered new exit (range 8) 4823 | -9/Materials | First assault squad dispatched 4852 | -9/Materials | Entered another Materials area 4852 | -8/Materials | Evolved 2 slots: Propulsion x1, Utility x1 5607 | -8/Materials | Discovered new exit (range 13) 5643 | -8/Materials | Identified exit to Factory 5644 | -8/Materials | Entered Factory 5644 | -7/Factory | Evolved 2 slots: Utility x2 5664 | -7/Factory | Lost 3 parts (3w) 5734 | -7/Factory | Discovered new exit (range 3) 5908 | -7/Factory | Discovered new exit (range 15) 5914 | -7/Factory | Identified exit to Factory 5966 | -7/Factory | Entered another Factory area 5966 | -6/Factory | Evolved 2 slots: Power x1, Utility x1 6214 | -6/Factory | Build established: Scout 6284 | -6/Factory | Discovered new exit (range 20) 6316 | -6/Factory | Search patrols dispatched 6317 | -6/Factory | Discovered new exit (range 22) 6335 | -6/Factory | Identified exit to Factory 6337 | -6/Factory | Entered another Factory area 6337 | -5/Factory | Evolved 2 slots: Propulsion x1, Utility x1 6458 | -5/Factory | Discovered new exit (range 8) 6460 | -5/Factory | Identified exit to Factory 6477 | -5/Factory | Entered another Factory area 6477 | -4/Factory | Evolved 2 slots: Utility x2 6538 | -4/Factory | Lost 6 parts (2p1n2u1w) 6578 | -4/Factory | Spotted B-86 Titan 6799 | -4/Factory | Discovered new exit (range 7) 6801 | -4/Factory | Identified exit to Extension 7013 | -4/Factory | Discovered new exit (range 10) 7018 | -4/Factory | Identified exit to Upper Caves 7018 | -4/Factory | Entered Upper Caves 7054 | -4/Upper Caves | Learned Research garrison access intel 7065 | -4/Upper Caves | Spotted B-86 Titan 7165 | -4/Upper Caves | Build established: Infiltrator-Ninja 7240 | -4/Upper Caves | Identified exit to Upper Caves 7305 | -4/Upper Caves | Entered another Upper Caves area 7314 | -4/Upper Caves | Found Alien Artifact 7334 | -4/Upper Caves | Discovered new exit (range 7) 7336 | -4/Upper Caves | Identified exit to Research 7372 | -4/Upper Caves | Learned location of 1 exit from Research 7411 | -4/Upper Caves | Discovered new exit (range 6) 7413 | -4/Upper Caves | Identified exit to Warlord 7413 | -4/Upper Caves | Entered Warlord 7438 | -4/Warlord | Discovered new exit (range 15) 7451 | -4/Warlord | System corruption cleaned by Quarantine Array 7487 | -4/Warlord | Met Warlord 7512 | -4/Warlord | Warlord's base attacked by MAIN.C 7524 | -4/Warlord | Found Prototype Energy Cannon 7524 | -4/Warlord | Identified Vortex Driver 7541 | -4/Warlord | Found Vortex Driver 7548 | -4/Warlord | Found Prototype Energy Gun 7548 | -4/Warlord | Identified Vortex Rifle 7623 | -4/Warlord | Found Prototype Reactor 7623 | -4/Warlord | Identified Vortex Chain Reactor 7630 | -4/Warlord | Found Prototype Hackware 7630 | -4/Warlord | Identified Ghost Barrier 7633 | -4/Warlord | Found Prototype Processor 7686 | -4/Warlord | Found Prototype Device 7686 | -4/Warlord | Identified Minesniffer Drone Bay 7688 | -4/Warlord | Identified Spectral Analyzer 7719 | -4/Warlord | Warlord forces counterattacked 7812 | -4/Warlord | Spotted Executioner 7812 | -4/Warlord | Spotted Executioner 7857 | -4/Warlord | Identified exit to Proximity Caves 7857 | -4/Warlord | Entered Proximity Caves 7924 | -3/Proximity Caves | Build established: Hacker-Ninja 7999 | -3/Proximity Caves | Spotted B-86 Titan 8194 | -3/Proximity Caves | Discovered exit to Research (range 20) 8201 | -3/Proximity Caves | Entered Research 8201 | -3/Research | Evolved 2 slots: Power x1, Propulsion x1 8202 | -3/Research | Identified exit to Research 8203 | -3/Research | Loaded intel: 4 garrison access locations 8291 | -3/Research | Identified exit to DSF 8297 | -3/Research | Entered DSF 8308 | -3/DSF | Discovered exit to Research (range 18) 8314 | -3/DSF | Additional patrols routed to DSF 8314 | -3/DSF | Entered Research 8314 | -2/Research | Warlord forces began assault on 0b10 8314 | -2/Research | Evolved 2 slots: Utility x2 8342 | -2/Research | Spotted B-90 Cyclops 8413 | -2/Research | Found Prototype Processor 8413 | -2/Research | Identified Exp. Core Analyzer 8424 | -2/Research | Research machine network offline 8439 | -2/Research | Lost 3 parts (1p1u1w) 8543 | -2/Research | Met up with Warlord 8572 | -2/Research | Spotted Striker 8574 | -2/Research | Spotted Striker 8637 | -2/Research | Discovered new exit (range 16) 8664 | -2/Research | Identified exit to Quarantine 8685 | -2/Research | Spotted Executioner 8686 | -2/Research | Spotted Striker 8748 | -2/Research | Borebot progress halted 8788 | -2/Research | Build established: Generator-Assassin 8837 | -2/Research | Borebot progress halted 8880 | -2/Research | Borebot progress halted 9460 | -2/Research | Found Prototype Device 9460 | -2/Research | Identified Exp. Focal Shield 9532 | -2/Research | Spotted Striker 9549 | -2/Research | Spotted Executioner 9550 | -2/Research | Entered Quarantine 9593 | -2/Quarantine | Found Alien Artifact 9630 | -2/Quarantine | Found Alien Artifact 9631 | -2/Quarantine | Identified Phase Redirector 9663 | -2/Quarantine | Found Alien Artifact 9663 | -2/Quarantine | Identified Subatomic Replicator 9698 | -2/Quarantine | Found Alien Artifact 9698 | -2/Quarantine | Identified Hpw. Transdimensional Reconstructor 9698 | -2/Quarantine | Warped through subspace 9717 | -2/Quarantine | Identified exit to Access 9734 | -2/Quarantine | Found Alien Artifact 9734 | -2/Quarantine | Identified Transdimensional Reconstructor 9734 | -2/Quarantine | Warped through subspace 9776 | -2/Quarantine | Found Alien Artifact 9777 | -2/Quarantine | Identified Dimensional Node Initializer 9777 | -2/Quarantine | Initialized slip node 9780 | -2/Quarantine | Found Dimensional Node Initializer 9780 | -2/Quarantine | Initialized slip node 9784 | -2/Quarantine | Found Transdimensional Reconstructor 9784 | -2/Quarantine | Warped through subspace to slip node 9789 | -2/Quarantine | Found Hpw. Transdimensional Reconstructor 9802 | -2/Quarantine | Found Alien Artifact 9802 | -2/Quarantine | Identified Core Reset Matrix 9802 | -2/Quarantine | Identified Terrabomb 9802 | -2/Quarantine | Used Core Reset Matrix 9806 | -2/Quarantine | Detected hypermatrix surge 9806 | -2/Quarantine | Sensed 6 artifacts in vicinity 9826 | -2/Quarantine | Spotted Fortress 9842 | -2/Quarantine | Build established: Generator-Ninja 9855 | -2/Quarantine | Discovered new exit (range 6) 9856 | -2/Quarantine | Identified exit to Section 7 9857 | -2/Quarantine | Entered Section 7 9858 | -2/Section 7 | Sensed 16 artifacts in vicinity 9859 | -2/Section 7 | Spotted S7 Guard 9865 | -2/Section 7 | Found Navigation Efficiency Matrix 9865 | -2/Section 7 | Installed Navigation Efficiency Matrix, process failed with unexpected side effects 9924 | -2/Section 7 | Warped through subspace 9929 | -2/Section 7 | Found Core Reset Matrix 9951 | -2/Section 7 | Spotted Alpha 7 9951 | -2/Section 7 | Spotted Alpha 7 9956 | -2/Section 7 | Spotted B-99 Colossus 9985 | -2/Section 7 | Used Terrabomb 10007 | -2/Section 7 | Spotted Executioner 10008 | -2/Section 7 | Spotted Executioner 10015 | -2/Section 7 | Found Transdimensional Reconstructor 10019 | -2/Section 7 | Found Terrabomb 10020 | -2/Section 7 | Lost 5 parts (1p4u) 10021 | -2/Section 7 | Found Terrabomb 10022 | -2/Section 7 | Found Terrabomb 10034 | -2/Section 7 | Spotted Striker 10034 | -2/Section 7 | Spotted Striker 10044 | -2/Section 7 | Spotted Executioner 10044 | -2/Section 7 | Spotted Executioner 10060 | -2/Section 7 | Core integrity fell below 50% 10094 | -2/Section 7 | Used Terrabomb 10094 | -2/Section 7 | Spotted Striker 10094 | -2/Section 7 | Spotted Striker 10109 | -2/Section 7 | Used Terrabomb 10113 | -2/Section 7 | Found Sigix Sheargun 10135 | -2/Section 7 | Used Terrabomb 10144 | -2/Section 7 | Found Transdimensional Reconstructor 10145 | -2/Section 7 | Found Transdimensional Reconstructor 10146 | -2/Section 7 | Warped through subspace 10147 | -2/Section 7 | Core integrity fell below 20% 10176 | -2/Section 7 | Lost 8 parts (1p3n3u1w) 10263 | -2/Section 7 | Found LRC Armor 10264 | -2/Section 7 | Installed LRC Armor, increased core integrity (+250) 10265 | -2/Section 7 | Found LRC Insulator 10266 | -2/Section 7 | Installed LRC Insulator, gained EM resistance (25) 10379 | -2/Section 7 | Scanned by Researcher 10380 | -2/Section 7 | Intercept squad dispatched 10387 | -2/Section 7 | Spotted Tracker 10388 | -2/Section 7 | Spotted Tracker 10388 | -2/Section 7 | Destroyed by Executioner with Helical Railgun Last Messages --------------- 10379_ ALERT: Modified LRC-V3 signature confirmed. [Achievement: Signature Confirmed] 10380_ ALERT: LRC-V3 signature pinpointed, intercept squad dispatched. 10381_ Penetrated by Slug. 10381_ Slug penetrates Construction Supplies. 10382_ Micro-nuke Launcher destroyed. 10382_ Penetrated by Slug. 10383_ Held in stasis. 10383_ C-65 Expert is analyzing... 10384_ Navigation matrix triggers involuntary quantum shift. 10385_ Slug penetrates L2 Monitoring Station. 10385_ L2 Monitoring Station destroyed. 10385_ Penetrated by Slug. 10385_ Spectral Analyzer destroyed. 10385_ Slug penetrates Thrusters. 10388_ Imp. System Shield destroyed. 10388_ Adv. Signal Interpreter destroyed. 10388_ Penetrated by Slug. [Achievement: 20k Club] [Achievement: Achiever] Map ----- +----------------------------------------------------+ | | | | | | | | | ?????????????????????????????????????????????????? | | ?????????????????????????????????????????????????? | | ?????????????????????????????????????????????????? | | ?????????????????????????????????????????????????? | | ?????????????????????????????????????????????????? | | ?????????????????????????????????????????????????? | | ?????????????????????????????????????????????????? | | ?????????????????????????????????????????????????? | | ???????????????????????????????###???????????????? | | ????????????################### ################# | | ????????????#"""""""""" E """"""""""# "#T | | ????????????#" """""""""# !! | | ????????????#" E " #### | | ? ????#???### | | ######"####T# "" | | s """ | | " s c " "" | | """""+""""""# " ?"" | | " # # " " "" | | " ! ]# " "" | | " # " " " """ | | "!== # "" @ " "" | | "!== # " " """" | | "!= # " " " | | """"""""# "" " """"""" | | " "" """""" " ?????" | | " # "" "????"""" " """"""" | | " "" """""" | | " "" g | | " "" g | | " "" """""" g | | """"" "" "????"""" " | | """""""" "" """""" """"" | | ! " #" "?" """" | | !" # """"" " | | " #" " " | | " "" " """ | | " "" """ " | | "" """ " "" "" T " | | " " " " #" """" " | | "" """ " # "??" "" | | """""""" ##" """" "" """ "" | | #""" """ " | | #""" " " "" """"""""" | | #""" """" " ""???????" | | ###""" "?" """ " "?"""""""" | +----------------------------------------------------+ Best States ------------- Heat Dissipation 74 Energy Generation 77 Energy Capacity 350 Matter Stores 300 Matter Capacity 300 Sight Range 24 Robot Scan Range 16 Terrain Scan Range 24 Terrain Scan Density 85 ECM Strength 1 Jamming Range 16 Cloak Strength 6 Power Amplification 30 Additional Mass Support 9 Armor Coverage 225 Resistance: TH 10 Resistance: EM 25 Core Shielding 20 Propulsion Shielding 33 Utility Shielding 33 Phase Shifting 15 Evasion (%) 77 Melee Accuracy 8 Core Analysis 8 Recoil Reduction 4 Salvage Targeting 3 Offensive Hacking 10 Defensive Hacking 32 Authchip Count 2 Item Schematics ----------------- None Robot Schematics ------------------ None Fabricated ------------ Nothing Alien Tech Used ----------------- Phase Redirector Subatomic Replicator High-powered Transdimensional Reconstructor Transdimensional Reconstructor Dimensional Node Initializer Core Reset Matrix Navigation Efficiency Matrix Terrabomb Sigix Sheargun LRC Armor LRC Insulator Achievements -------------- 20k Club A Powerful Ally? Achiever Alien Roots All-out Warlord Backstab Can't Catch Me Charge!!! Close Call Dodgeball, But With Guns I Spy I'm Back, Baby! Knowing Is Half The Battle Librarian More Power To You Nope Part-time Excavator Respectable Loadout Rockin' Loadout Serviceable Loadout Signature Confirmed Significant Disruption Subspace Traveler Challenges ------------ None Game ------ Seed HelicalNuclearCloak Manual? 0 Play Time 03:46:31 Cumulative 20.0 hours Start 2022.10.27 @ 15:43:47 End 2022.10.28 @ 00:25:06 Sessions 5 Manual Loads 0 Difficulty Rogue Special Mode None Game No. 2 Rogue 2 Adventurer 0 Explorer 0 Win Type - Total 0 Types 0/0/0/0/0/0/0/0/0 Lore% 6 Gallery% 20 Achievement% 26 Wizard Run 0 Options --------- ASCII 0 Keyboard 0 Movement Mouse Keybinds 0 Fullscreen 2 Font 16/SmallcapsGlow Map View 75x55 Tactical HUD 1 Map Filters NONE Filters NONE Steam 1 RUN: 8a29c21a-e2dc-4048-a920-aaf263489228